bitfinex-derivatives/quotes_BTCF0:USTF0_20241010
["timestamp","ask_amount","ask_price","bid_price","bid_amount"]
[1728555155032,0.12,61027.0,61026.0,0.44281]
[1728555155231,0.16016364,61027.0,61026.0,0.44281]
[1728555155435,0.13115812,61031.0,61026.0,0.3608]
[1728555155629,0.13115812,61031.0,61030.0,0.082004]
[1728555155831,0.04016333,61031.0,61030.0,0.082004]
[1728555156042,0.04216333,61031.0,61030.0,0.082004]
[1728555156636,0.07027224,61031.0,61030.0,0.089004]
[1728555157432,0.07027224,61031.0,61030.0,0.096004]
[1728555157740,0.07027224,61031.0,61030.0,0.103004]
[1728555158636,0.07027219,61031.0,61030.0,0.103004]
[1728555158937,0.07027219,61031.0,61030.0,0.097004]
[1728555159741,0.07027219,61031.0,61030.0,0.090004]
[1728555159935,0.07127219,61031.0,61030.0,0.110004]
[1728555160436,0.07027219,61031.0,61030.0,0.102004]
[1728555160635,0.07027219,61031.0,61030.0,0.088004]
[1728555160836,0.07027219,61031.0,61030.0,0.095004]
[1728555161038,0.07027219,61031.0,61030.0,0.094004]
[1728555162133,0.03010891,61031.0,61030.0,0.094004]
[1728555162333,0.12,61032.0,61030.0,0.012]
[1728555162641,0.4808,61032.0,61031.0,0.082003]
[1728555164238,0.4808,61032.0,61031.0,0.202003]
[1728555164239,0.3608,61032.0,61031.0,0.202003]
[1728555164438,0.3648,61032.0,61031.0,0.202003]
[1728555164834,0.3608,61032.0,61031.0,0.202003]
[1728555165036,0.3628,61032.0,61031.0,0.202003]
[1728555165231,0.003,61032.0,61031.0,0.202003]
[1728555165845,0.002,61032.0,61031.0,0.202003]
[1728555166047,0.002,61032.0,61031.0,0.211003]
[1728555166745,0.201995,61037.0,61036.0,0.081996]
[1728555167540,0.23108757,61037.0,61036.0,0.081996]
[1728555168041,0.23108757,61037.0,61033.0,0.082]
[1728555168042,0.081999,61034.0,61033.0,0.082]
[1728555168243,0.201999,61034.0,61033.0,0.082]
[1728555169141,0.65330679,61034.0,61033.0,0.082]
[1728555169347,0.71213263,61034.0,61033.0,0.082]
[1728555169942,0.71413263,61034.0,61033.0,0.082]
[1728555176245,0.564799,61034.0,61033.0,0.082]
[1728555179352,0.4828,61034.0,61033.0,0.082]
[1728555180154,0.564799,61034.0,61033.0,0.082]
[1728555181545,0.203999,61034.0,61033.0,0.082]
[1728555181746,0.3628,61034.0,61033.0,0.082]
[1728555181947,0.32176909,61034.0,61033.0,0.20601508]
[1728555182247,0.32176909,61034.0,61033.0,0.28712315]
[1728555182939,0.32176909,61034.0,61033.0,0.40712315]
[1728555183347,0.32176909,61034.0,61033.0,0.32601508]
[1728555183546,0.32176909,61034.0,61033.0,0.20601508]
[1728555184357,0.32176909,61034.0,61033.0,0.082]
[1728555184358,0.47109628,61034.0,61033.0,0.082]
[1728555185353,0.14932719,61034.0,61033.0,0.202]
[1728555185655,0.09050389,61034.0,61033.0,0.202]
[1728555185842,0.0904959,61038.0,61033.0,0.202]
[1728555186047,0.3608,61040.0,61036.0,0.201996]
[1728555186048,0.1493192,61037.0,61036.0,0.201996]
[1728555186249,0.0904959,61037.0,61036.0,0.201996]
[1728555187950,0.4532959,61037.0,61036.0,0.201996]
[1728555188254,0.5121192,61037.0,61036.0,0.201996]
[1728555189348,0.5151192,61037.0,61036.0,0.201996]
[1728555191343,0.3658,61037.0,61036.0,0.201996]
[1728555194257,0.3658,61037.0,61036.0,0.081996]
[1728555194258,0.567795,61037.0,61036.0,0.081996]
[1728555194550,0.567795,61037.0,61017.0,0.082021]
[1728555194551,0.081998,61035.0,61033.0,0.04860243]
[1728555194758,0.201999,61034.0,61033.0,0.04860243]
[1728555194954,0.12,61034.0,61033.0,0.082]
[1728555195942,0.122,61034.0,61033.0,0.082]
[1728555196458,0.002,61034.0,61033.0,0.082]
[1728555206654,0.23331964,61034.0,61033.0,0.082]
[1728555207063,0.35485479,61034.0,61033.0,0.082]
[1728555207358,0.41367551,61034.0,61033.0,0.082]
[1728555207551,0.23331964,61034.0,61033.0,0.082]
[1728555208153,0.32613257,61034.0,61027.0,0.082008]
[1728555208354,0.32613257,61034.0,61019.0,0.3608]
[1728555208355,0.3608,61029.0,61019.0,0.3608]
[1728555208660,0.12,61020.0,61019.0,0.3608]
[1728555208956,0.21049992,61020.0,61019.0,0.442819]
[1728555209158,0.21049992,61020.0,61019.0,0.082019]
[1728555209458,0.35134949,61020.0,61019.0,0.082019]
[1728555209864,0.35134949,61020.0,61019.0,0.096019]
[1728555210360,0.39033149,61020.0,61019.0,0.014]
[1728555210550,0.47234949,61020.0,61019.0,0.014]
[1728555211261,0.50140182,61020.0,61019.0,0.014]
[1728555211466,0.50440182,61020.0,61019.0,0.014]
[1728555212149,0.50140182,61020.0,61019.0,0.014]
[1728555212354,0.50440182,61020.0,61019.0,0.015]
[1728555212865,0.50340182,61020.0,61019.0,0.001]
[1728555213166,0.50940182,61020.0,61019.0,0.002]
[1728555214152,0.50340182,61020.0,61019.0,0.001]
[1728555214456,0.36007033,61020.0,61019.0,0.002]
[1728555214656,0.35707033,61020.0,61019.0,0.001]
[1728555214856,0.36007033,61020.0,61019.0,0.002]
[1728555217264,0.35707033,61020.0,61019.0,0.001]
[1728555217456,0.36007033,61020.0,61019.0,0.002]
[1728555217875,0.72087033,61020.0,61019.0,0.002]
[1728555218762,0.36007033,61020.0,61019.0,0.002]
[1728555218962,0.72087033,61020.0,61019.0,0.002]
[1728555225669,0.082027,61013.0,61008.0,0.0472]
[1728555225864,0.6008,61009.0,61008.0,0.129234]
[1728555226171,0.4808,61009.0,61008.0,0.129234]
[1728555226970,0.4808,61009.0,61008.0,0.146234]
[1728555227360,0.4808,61009.0,61008.0,0.138234]
[1728555227556,0.4818,61009.0,61008.0,0.141234]
[1728555227766,0.4828,61009.0,61008.0,0.155234]
[1728555228767,0.3628,61009.0,61008.0,0.155234]
[1728555228966,0.3628,61009.0,61008.0,0.275234]
[1728555229166,0.002,61009.0,61008.0,0.275234]
[1728555231963,0.04217392,61009.0,61008.0,0.275234]
[1728555234477,0.17308046,61009.0,61008.0,0.275234]
[1728555235270,0.09253053,61009.0,61008.0,0.275234]
[1728555236170,0.23980039,61009.0,61008.0,0.275234]
[1728555236366,0.09253053,61009.0,61008.0,0.275234]
[1728555236573,0.36566218,61012.0,61011.0,0.08203]
[1728555236574,0.32661711,61012.0,61011.0,0.08203]
[1728555237371,0.32661711,61012.0,61011.0,0.14680836]
[1728555237580,0.32661711,61012.0,61011.0,0.08203]
[1728555237778,0.32661711,61012.0,61011.0,0.08403]
[1728555238073,0.32661711,61012.0,61011.0,0.08503]
[1728555239275,0.28363318,61012.0,61011.0,0.08503]
[1728555240675,0.36566118,61012.0,61011.0,0.08503]
[1728555242581,0.36566118,61012.0,61011.0,0.14992995]
[1728555242785,0.72646118,61012.0,61011.0,0.14992995]
[1728555243281,0.64443318,61012.0,61011.0,0.08403]
[1728555244079,0.64443318,61012.0,61011.0,0.08303]
[1728555244279,0.64543318,61012.0,61011.0,0.08303]
[1728555244593,0.81682479,61012.0,61011.0,0.08303]
[1728555244881,0.45602479,61012.0,61011.0,0.08303]
[1728555245385,0.81682479,61012.0,61011.0,0.08303]
[1728555245780,0.65319161,61012.0,61011.0,0.08303]
[1728555247383,0.65436503,61012.0,61011.0,0.08303]
[1728555247784,0.80172749,61012.0,61011.0,0.08303]
[1728555249397,0.65436503,61012.0,61011.0,0.08303]
[1728555250897,0.563828,61012.0,61011.0,0.08303]
[1728555251104,0.57233769,61012.0,61011.0,0.08303]
[1728555251605,0.4818,61012.0,61011.0,0.28903545]
[1728555253601,0.121,61012.0,61011.0,0.28903545]
[1728555253804,0.4818,61012.0,61011.0,0.08303]
[1728555254303,0.121,61012.0,61011.0,0.16414023]
[1728555254503,0.4818,61012.0,61011.0,0.16414023]
[1728555254898,0.121,61012.0,61011.0,0.16414023]
[1728555255100,0.4818,61012.0,61011.0,0.16414023]
[1728555256099,0.4818,61012.0,61011.0,0.28904194]
[1728555259511,0.52197751,61012.0,61011.0,0.08303]
[1728555260102,0.57233729,61012.0,61011.0,0.08303]
[1728555261008,0.21153729,61012.0,61011.0,0.08303]
[1728555261209,0.57233729,61012.0,61011.0,0.08303]
[1728555264803,0.45233729,61012.0,61011.0,0.08303]
[1728555265115,0.45233385,61012.0,61011.0,0.20303]
[1728555265405,0.40197751,61012.0,61011.0,0.20303]
[1728555266712,0.30433797,61012.0,61011.0,0.32773833]
[1728555268515,0.30433797,61012.0,61011.0,0.20773833]
[1728555269106,0.14961016,61013.0,61011.0,0.12570833]
[1728555269414,0.14961016,61013.0,61012.0,0.30407646]
[1728555269611,0.14961016,61013.0,61012.0,0.20673633]
[1728555270207,0.14961016,61013.0,61012.0,0.20632396]
[1728555270412,0.14961016,61013.0,61012.0,0.30366409]
[1728555270807,0.15161016,61013.0,61012.0,0.20632396]
[1728555271202,0.14961016,61013.0,61012.0,0.20632396]
[1728555271403,0.15161016,61013.0,61012.0,0.20632396]
[1728555275112,0.15161016,61013.0,61012.0,0.20634424]
[1728555278119,0.03161016,61013.0,61012.0,0.20634424]
[1728555278314,0.002,61013.0,61012.0,0.20634424]
[1728555279306,0.002,61013.0,61012.0,0.30368437]
[1728555279917,0.002,61013.0,61012.0,0.30361908]
[1728555280910,0.002,61013.0,61012.0,0.20627895]
[1728555281317,0.002,61013.0,61012.0,0.30361908]
[1728555281514,0.35105854,61016.0,61012.0,0.30361908]
[1728555281716,0.35105854,61016.0,61015.0,0.082024]
[1728555281717,0.53105504,61016.0,61015.0,0.082024]
[1728555281918,0.44158938,61016.0,61015.0,0.082024]
[1728555282717,0.44458938,61016.0,61015.0,0.082024]
[1728555283514,0.09353084,61016.0,61015.0,0.082024]
[1728555283714,0.45433084,61016.0,61015.0,0.082024]
[1728555284014,0.48413515,61016.0,61015.0,0.082024]
[1728555284220,0.45433084,61016.0,61015.0,0.082024]
[1728555284518,0.45933084,61016.0,61015.0,0.082024]
[1728555284716,0.5831866,61016.0,61015.0,0.082024]
[1728555284918,0.62335933,61016.0,61015.0,0.082024]
[1728555285222,0.62335933,61016.0,61015.0,0.202024]
[1728555286615,0.45932652,61016.0,61015.0,0.202024]
[1728555289522,0.45932573,61016.0,61015.0,0.202024]
[1728555289724,0.3688,61016.0,61015.0,0.42317659]
[1728555291225,0.3688,61016.0,61015.0,0.32583646]
[1728555291519,0.3688,61016.0,61015.0,0.20583646]
[1728555294827,0.008,61016.0,61015.0,0.20583646]
[1728555296723,0.008,61016.0,61015.0,0.082024]
[1728555298522,0.04817327,61016.0,61015.0,0.082024]
[1728555299122,0.008,61016.0,61015.0,0.082024]
[1728555299320,0.04817327,61016.0,61015.0,0.082024]
[1728555299727,0.04817327,61016.0,61015.0,0.058424]
[1728555302634,0.04817332,61016.0,61015.0,0.058424]
[1728555304435,0.09852785,61016.0,61015.0,0.058424]
[1728555304637,0.008,61016.0,61015.0,0.27980213]
[1728555305338,0.008,61016.0,61015.0,0.182462]
[1728555307233,0.008,61016.0,61015.0,0.18257006]
[1728555311941,0.008,61016.0,61015.0,0.058424]
[1728555318843,0.090023,61016.0,61015.0,0.058424]
[1728555319847,0.23939187,61016.0,61015.0,0.058424]
[1728555321743,0.23939186,61016.0,61015.0,0.058424]
[1728555322242,0.33787877,61016.0,61008.0,0.408]
[1728555322441,0.12,61010.0,61009.0,0.082032]
[1728555322647,0.09052914,61010.0,61009.0,0.082032]
[1728555322845,0.16409992,61011.0,61010.0,0.082031]
[1728555323042,0.16409992,61011.0,61010.0,0.202031]
[1728555323451,0.09053231,61011.0,61010.0,0.202031]
[1728555323742,0.09053231,61011.0,61010.0,0.244431]
[1728555324245,0.18050991,61018.0,61011.0,0.49172]
[1728555324446,0.11182121,61030.0,61029.0,0.082006]
[1728555324447,0.082004,61030.0,61029.0,0.082006]
[1728555324640,0.1118137,61030.0,61029.0,0.202006]
[1728555324942,0.08863981,61030.0,61029.0,0.202006]
[1728555325345,0.0298097,61030.0,61029.0,0.202006]
[1728555325640,0.05883011,61031.0,61030.0,0.082004]
[1728555326044,0.05883011,61031.0,61030.0,0.247204]
[1728555326443,0.00245843,61033.0,61032.0,0.082002]
[1728555326660,0.00245843,61033.0,61032.0,0.202002]
[1728555326863,0.11171604,61037.0,61034.0,0.081999]
[1728555327562,0.11171604,61037.0,61036.0,0.0648093]
[1728555327761,0.11171604,61037.0,61036.0,0.1468053]
[1728555327762,0.02972104,61037.0,61036.0,0.1468053]
[1728555327974,0.014,61037.0,61036.0,0.1468053]
[1728555328266,0.014,61037.0,61036.0,0.081996]
[1728555329263,0.3748,61037.0,61036.0,0.081996]
[1728555329565,0.3738,61037.0,61036.0,0.13054715]
[1728555329863,0.013,61037.0,61036.0,0.13054715]
[1728555330064,0.3648,61037.0,61036.0,0.081996]
[1728555330458,0.3678,61037.0,61036.0,0.13053282]
[1728555331467,0.3678,61037.0,61036.0,0.081996]
[1728555331770,0.3678,61037.0,61036.0,0.13053282]
[1728555332466,0.3678,61037.0,61036.0,0.081996]
[1728555333557,0.3638,61037.0,61036.0,0.081996]
[1728555333756,0.516126,61037.0,61036.0,0.081996]
[1728555333962,0.73428016,61037.0,61036.0,0.081996]
[1728555334367,0.37348016,61037.0,61036.0,0.081996]
[1728555334572,0.73428016,61037.0,61036.0,0.081996]
[1728555335765,0.521126,61037.0,61033.0,0.081999]
[1728555335971,0.12,61034.0,61033.0,0.081999]
[1728555336269,0.21050317,61034.0,61033.0,0.081999]
[1728555336475,0.351325,61034.0,61033.0,0.05616392]
[1728555337372,0.272326,61034.0,61033.0,0.05616392]
[1728555338960,0.274326,61034.0,61033.0,0.05616392]
[1728555339969,0.635126,61034.0,61033.0,0.05616392]
[1728555340271,0.63512763,61034.0,61033.0,0.05616392]
[1728555341858,0.4858,61034.0,61033.0,0.05616392]
[1728555344674,0.567799,61034.0,61033.0,0.05616392]
[1728555347863,0.4858,61034.0,61033.0,0.05616392]
[1728555348077,0.3658,61034.0,61033.0,0.05616392]
[1728555348866,0.51512378,61034.0,61033.0,0.05616392]
[1728555349178,0.69492431,61034.0,61033.0,0.05616392]
[1728555349763,0.6199285,61034.0,61033.0,0.05616392]
[1728555350078,0.4563019,61034.0,61033.0,0.10146392]
[1728555350470,0.6199285,61034.0,61033.0,0.10146392]
[1728555351474,0.27558684,61034.0,61033.0,0.46226392]
[1728555351873,0.0955019,61034.0,61033.0,0.46226392]
[1728555352074,0.25920833,61034.0,61033.0,0.95378392]
[1728555352379,0.16370643,61037.0,61033.0,0.95378392]
[1728555352569,0.14735778,61034.0,61033.0,0.46226392]
[1728555352769,0.081981,61048.0,61033.0,0.46226392]
[1728555352770,0.13098142,61035.0,61033.0,0.46226392]
[1728555352972,0.13098142,61035.0,61034.0,0.201999]
[1728555353367,0.006,61037.0,61036.0,0.081996]
[1728555353572,0.006,61037.0,61036.0,0.211996]
[1728555353774,0.14735778,61040.0,61039.0,0.081992]
[1728555353973,0.14735778,61040.0,61039.0,0.562792]
[1728555354484,0.16370643,61043.0,61042.0,0.081988]
[1728555354684,0.18008494,61043.0,61042.0,0.201988]
[1728555354983,0.18008494,61044.0,61043.0,0.081987]
[1728555355187,0.18008494,61044.0,61043.0,0.247087]
[1728555355188,0.05880954,61044.0,61043.0,0.247087]
[1728555355390,0.05880954,61047.0,61046.0,0.081983]
[1728555355686,0.05880954,61047.0,61046.0,0.201983]
[1728555356780,0.38993208,61048.0,61046.0,0.12]
[1728555357085,0.38993208,61048.0,61047.0,0.081981]
[1728555358180,0.40393208,61048.0,61047.0,0.081981]
[1728555358572,0.41693208,61048.0,61047.0,0.082981]
[1728555359084,0.027,61048.0,61047.0,0.082981]
[1728555359785,0.027,61048.0,61047.0,0.083981]
[1728555360689,0.027,61048.0,61047.0,0.575421]
[1728555361978,0.3608,61054.0,61047.0,0.575421]
[1728555361979,0.86196,61062.0,61047.0,1.175421]
[1728555362296,0.943921,61062.0,61061.0,0.12]
[1728555362585,0.943921,61062.0,61061.0,0.081963]
[1728555362586,1.063921,61062.0,61061.0,0.081963]
[1728555363082,0.90480431,61062.0,61061.0,0.201963]
[1728555363388,0.91880431,61062.0,61061.0,0.202963]
[1728555364776,0.88996,61062.0,61061.0,0.202963]
[1728555364976,0.4306,61062.0,61061.0,0.202963]
[1728555365283,0.4166,61062.0,61061.0,0.203963]
[1728555365981,0.014,61062.0,61061.0,0.203963]
[1728555366877,0.3608,61066.0,61061.0,0.121]
[1728555367189,0.3608,61066.0,61065.0,0.201957]
[1728555367687,0.3608,61066.0,61062.0,0.081961]
[1728555367688,0.081959,61064.0,61062.0,0.081961]
[1728555367992,0.081959,61064.0,61063.0,0.08196]
[1728555368985,0.087959,61064.0,61063.0,0.08296]
[1728555369183,0.207959,61064.0,61063.0,0.08296]
[1728555369884,0.211959,61064.0,61063.0,0.08296]
[1728555370274,0.207959,61064.0,61063.0,0.08296]
[1728555370475,0.211959,61064.0,61063.0,0.08396]
[1728555371885,0.36121362,61064.0,61063.0,0.08396]
[1728555373690,0.72201362,61064.0,61063.0,0.08396]
[1728555374496,0.27075371,61064.0,61063.0,0.08396]
[1728555374679,0.63155371,61064.0,61063.0,0.08396]
[1728555374987,0.64005491,61064.0,61063.0,0.08396]
[1728555379493,0.52005491,61064.0,61063.0,0.08396]
[1728555379996,0.3708,61064.0,61063.0,0.08396]
[1728555380586,0.01,61064.0,61063.0,0.08396]
[1728555380794,0.3708,61064.0,61063.0,0.08396]
[1728555383800,0.3708,61064.0,61063.0,0.12876]
[1728555385491,0.3668,61064.0,61063.0,0.12776]
[1728555385693,0.3708,61064.0,61063.0,0.12876]
[1728555387109,0.10045455,61064.0,61063.0,0.12876]
[1728555388701,0.10045455,61064.0,61063.0,0.74004]
[1728555389401,0.09044301,61064.0,61063.0,1.34004]
[1728555389612,0.09044301,61064.0,61063.0,1.46004]
[1728555389992,0.17964324,61072.0,61063.0,1.46004]
[1728555390308,0.3608,61074.0,61072.0,0.081948]
[1728555390505,0.3608,61074.0,61072.0,0.201948]
[1728555391401,0.97125,61073.0,61072.0,0.201948]
[1728555392708,0.97125,61073.0,61068.0,0.00236]
[1728555392709,1.173197,61073.0,61068.0,0.00236]
[1728555392896,0.081959,61067.0,61066.0,0.081956]
[1728555393096,0.081959,61067.0,61058.0,0.125366]
[1728555393097,0.12,61067.0,61062.0,0.02889685]
[1728555393296,0.12,61067.0,61058.0,0.0434]
[1728555393297,0.201963,61061.0,61060.0,0.081964]
[1728555393506,0.081963,61061.0,61060.0,0.081964]
[1728555393804,0.081963,61061.0,61060.0,0.201964]
[1728555394608,0.081963,61061.0,61060.0,0.3368722]
[1728555395004,0.442761,61063.0,61062.0,0.081961]
[1728555396091,0.442761,61063.0,61062.0,0.13064386]
[1728555397709,0.442761,61063.0,61062.0,0.04868286]
[1728555397915,0.081961,61062.0,61061.0,0.04868286]
[1728555398199,0.081961,61062.0,61058.0,0.0649082]
[1728555398200,0.081964,61060.0,61058.0,0.04868542]
[1728555398505,0.081966,61059.0,61057.0,0.29579273]
[1728555398708,0.081966,61059.0,61058.0,0.081967]
[1728555401200,0.086966,61059.0,61058.0,0.081967]
[1728555401606,0.005,61059.0,61058.0,0.081967]
[1728555402811,0.005,61059.0,61058.0,0.442767]
[1728555403001,0.005,61059.0,61058.0,1.042767]
[1728555403201,0.081949,61072.0,61068.0,0.081953]
[1728555403504,0.11085759,61072.0,61068.0,0.271953]
[1728555403917,0.28019839,61078.0,61068.0,0.271953]
[1728555403918,0.442851,61073.0,61069.0,0.49124]
[1728555404109,0.249348,61073.0,61072.0,0.461948]
[1728555404408,0.249348,61073.0,61072.0,1.07802483]
[1728555404409,0.01130222,61073.0,61072.0,1.07802483]
[1728555404598,0.01130222,61073.0,61072.0,1.75464185]
[1728555405504,2.2e-07,61073.0,61072.0,1.71764676]
[1728555406099,0.081921,61092.0,61076.0,0.00245558]
[1728555406301,0.081921,61092.0,61091.0,0.081922]
[1728555407604,0.084921,61092.0,61091.0,0.082922]
[1728555408215,0.003,61092.0,61091.0,0.082922]
[1728555408609,0.003,61092.0,61091.0,0.272922]
[1728555408815,0.003,61092.0,61091.0,0.273922]
[1728555409313,0.18264324,61092.0,61091.0,0.273922]
[1728555409510,0.15217394,61092.0,61091.0,0.273922]
[1728555409707,0.2727676,61092.0,61091.0,0.273922]
[1728555409905,0.09341101,61092.0,61091.0,0.273922]
[1728555410106,0.09341101,61092.0,61091.0,0.30309776]
[1728555410307,0.09341101,61092.0,61091.0,0.273922]
[1728555410512,0.165973,61092.0,61091.0,0.463922]
[1728555410717,0.165973,61092.0,61091.0,0.824722]
[1728555411016,0.165973,61092.0,61091.0,0.634722]
[1728555411321,0.25638401,61092.0,61091.0,0.824722]
[1728555411514,0.09341101,61092.0,61091.0,0.824722]
[1728555411702,0.09341101,61092.0,61091.0,0.634722]
[1728555414116,0.165973,61092.0,61091.0,0.634722]
[1728555414316,0.09341101,61092.0,61091.0,0.634722]
[1728555415308,0.16571948,61092.0,61091.0,0.634722]
[1728555415611,0.20584095,61092.0,61091.0,0.634722]
[1728555415819,0.25613049,61092.0,61091.0,0.634722]
[1728555416116,0.05028639,61092.0,61091.0,1.424722]
[1728555416310,0.17935659,61098.0,61097.0,0.081914]
[1728555416514,0.17935659,61102.0,61101.0,0.081909]
[1728555416707,0.17935659,61102.0,61101.0,0.271909]
[1728555416902,0.17935659,61102.0,61101.0,1.362909]
[1728555417315,0.19,61127.0,61111.0,0.081896]
[1728555417507,0.0442,61116.0,61115.0,0.08189]
[1728555418408,0.0442,61126.0,61125.0,0.081877]
[1728555418607,0.0442,61126.0,61125.0,0.271877]
[1728555418817,0.081879,61123.0,61121.0,0.081882]
[1728555419007,0.081877,61125.0,61123.0,0.081878]
[1728555419208,0.0442,61126.0,61125.0,0.081877]
[1728555419604,0.0442,61126.0,61124.0,0.19]
[1728555420305,0.0442,61126.0,61125.0,0.081877]
[1728555420713,0.0442,61126.0,61125.0,0.082877]
[1728555421519,0.2342,61126.0,61124.0,0.001]
[1728555421817,0.442677,61125.0,61121.0,0.081882]
[1728555422018,0.3608,61125.0,61121.0,0.081882]
[1728555422206,0.081879,61124.0,61121.0,0.081882]
[1728555422403,0.2342,61126.0,61118.0,0.19]
[1728555422612,0.316076,61126.0,61124.0,0.001]
[1728555423210,0.0442,61126.0,61124.0,0.001]
[1728555423411,0.0442,61126.0,61125.0,0.271877]
[1728555423811,0.0442,61126.0,61125.0,0.081877]
[1728555424010,0.0442,61126.0,61125.0,0.06851999]
[1728555424319,0.22355659,61126.0,61125.0,0.06851999]
[1728555424619,0.22355659,61126.0,61121.0,0.002]
[1728555424620,0.081881,61122.0,61121.0,0.002]
[1728555424815,0.081885,61119.0,61118.0,0.081885]
[1728555425024,0.32215245,61119.0,61117.0,0.3608]
[1728555425316,0.05026745,61118.0,61117.0,0.3608]
[1728555425521,0.05027043,61118.0,61111.0,0.3608]
[1728555425820,0.05027043,61118.0,61113.0,0.081892]
[1728555425821,0.19,61114.0,61113.0,0.081892]
[1728555426021,0.24027294,61114.0,61113.0,0.081892]
[1728555426219,0.28237294,61114.0,61113.0,0.081892]
[1728555426821,0.28437294,61114.0,61113.0,0.081892]
[1728555427323,0.36626494,61114.0,61113.0,0.081892]
[1728555427520,0.28437294,61114.0,61111.0,0.3608]
[1728555427722,0.05027294,61113.0,61112.0,0.081894]
[1728555428307,0.05027294,61113.0,61111.0,0.3608]
[1728555428523,0.0446,61112.0,61111.0,0.3608]
[1728555429019,0.09487563,61112.0,61104.0,0.3608]
[1728555429223,0.271896,61111.0,61104.0,0.3608]
[1728555429412,0.05027566,61110.0,61104.0,0.3608]
[1728555430015,0.05027566,61110.0,61109.0,0.081898]
[1728555431319,0.21332656,61110.0,61109.0,0.081898]
[1728555431530,0.21532656,61110.0,61109.0,0.081898]
[1728555432024,0.1650509,61110.0,61109.0,0.081898]
[1728555432620,0.1650509,61110.0,61109.0,0.13043244]
[1728555433327,0.1650509,61110.0,61109.0,0.081898]
[1728555433529,0.2469479,61110.0,61109.0,0.081898]
[1728555434333,0.2459479,61110.0,61109.0,0.081898]
[1728555435137,0.1640509,61110.0,61109.0,0.081898]
[1728555437317,0.1620509,61110.0,61109.0,0.081898]
[1728555437521,0.1630509,61110.0,61109.0,0.081898]
[1728555438227,0.1620509,61110.0,61109.0,0.081898]
[1728555438615,0.3520509,61110.0,61109.0,0.16278874]
[1728555438821,0.271897,61110.0,61109.0,0.16278874]
[1728555439021,0.272897,61110.0,61109.0,0.16278874]
[1728555439219,0.081905,61104.0,61103.0,0.00236]
[1728555439420,0.081906,61103.0,61102.0,0.081907]
[1728555439723,0.081912,61100.0,61099.0,0.081911]
[1728555439922,0.271912,61100.0,61099.0,0.081911]
[1728555440320,0.081912,61099.0,61098.0,0.00245459]
[1728555440619,0.170912,61099.0,61098.0,0.08436759]
[1728555441025,0.170912,61099.0,61098.0,0.00245459]
[1728555441230,0.170912,61099.0,61098.0,0.08436759]
[1728555441426,0.170912,61099.0,61098.0,0.09836759]
[1728555441821,0.170912,61099.0,61098.0,0.11236759]
[1728555443523,0.170912,61099.0,61098.0,0.03045459]
[1728555443736,0.170912,61099.0,61098.0,0.01645459]
[1728555443933,0.174912,61099.0,61098.0,0.00245459]
[1728555444435,0.172912,61099.0,61098.0,0.08436759]
[1728555444633,0.174912,61099.0,61098.0,0.00245459]
[1728555445023,0.172912,61099.0,61098.0,0.00245459]
[1728555445219,0.174912,61099.0,61098.0,0.00245459]
[1728555446823,0.172912,61099.0,61098.0,0.00245459]
[1728555447024,0.178912,61099.0,61098.0,0.00245459]
[1728555447231,0.097,61099.0,61098.0,0.27926142]
[1728555447436,0.097,61099.0,61098.0,0.36117442]
[1728555447437,0.0527,61099.0,61098.0,0.36117442]
[1728555447828,0.0487,61099.0,61098.0,0.36117442]
[1728555448037,0.00871285,61099.0,61098.0,0.36117442]
[1728555448226,0.00871285,61099.0,61098.0,0.2092145]
[1728555448433,0.005,61099.0,61098.0,0.2092145]
[1728555451230,0.086912,61099.0,61098.0,0.2092145]
[1728555451535,0.086912,61099.0,61098.0,0.1273015]
[1728555451834,0.086912,61099.0,61098.0,0.22441001]
[1728555452137,1.538712,61099.0,61098.0,0.13933815]
[1728555452340,0.081914,61097.0,61095.0,0.08093665]
[1728555452532,0.271917,61095.0,61094.0,0.08093665]
[1728555452836,0.081918,61094.0,61093.0,0.08093665]
[1728555453039,0.08192,61093.0,61092.0,0.08093665]
[1728555453334,0.08192,61093.0,61091.0,0.08093665]
[1728555453335,0.081921,61092.0,61091.0,0.08093665]
[1728555453528,0.081921,61092.0,61090.0,0.081923]
[1728555453731,0.081921,61092.0,61091.0,0.08095135]
[1728555454132,0.081921,61092.0,61090.0,0.13049306]
[1728555454340,0.081921,61092.0,61090.0,0.081923]
[1728555455537,0.081921,61092.0,61089.0,0.04857006]
[1728555455538,0.081921,61092.0,61091.0,0.081922]
[1728555455734,0.03815673,61093.0,61092.0,0.081921]
[1728555456035,0.009,61093.0,61092.0,0.081921]
[1728555456536,0.02898258,61098.0,61092.0,0.081921]
[1728555456741,0.081912,61099.0,61093.0,0.04857006]
[1728555456929,0.081912,61099.0,61098.0,0.081913]
[1728555457742,0.085912,61099.0,61098.0,0.081913]
[1728555458140,0.088912,61099.0,61098.0,0.081913]
[1728555458533,0.007,61099.0,61098.0,0.081913]
[1728555459644,0.009,61099.0,61098.0,0.081913]
[1728555459944,0.009,61099.0,61098.0,0.090913]
[1728555459945,0.006,61099.0,61098.0,0.090913]
[1728555460337,0.006,61099.0,61098.0,0.096913]
[1728555460338,0.002,61099.0,61098.0,0.096913]
[1728555460933,0.002,61099.0,61098.0,0.087913]
[1728555460934,0.001,61099.0,61098.0,0.087913]
[1728555461138,0.002,61099.0,61098.0,0.102913]
[1728555461743,0.002,61099.0,61098.0,0.103913]
[1728555462446,0.05228722,61099.0,61098.0,0.103913]
[1728555462639,0.09140684,61099.0,61098.0,0.095913]
[1728555463348,0.09140684,61099.0,61098.0,0.096913]
[1728555464041,0.09040684,61099.0,61098.0,0.084913]
[1728555464245,0.09040684,61099.0,61098.0,0.087913]
[1728555464447,0.23744758,61099.0,61098.0,0.087913]
[1728555464838,0.14704074,61099.0,61098.0,0.087913]
[1728555465039,0.09040684,61099.0,61098.0,0.087913]
[1728555465740,0.09040684,61099.0,61098.0,0.086913]
[1728555467242,0.09040684,61099.0,61098.0,0.087913]